bitfinex-derivatives/quotes_SOLF0:USTF0_20260304
["timestamp","ask_amount","ask_price","bid_price","bid_amount"]
[1772652041206,15.30930172,93.297,93.23,8.28162301]
[1772652042304,15.30930172,93.285,93.226,9.65]
[1772652042606,15.30930172,93.319,93.24,8.28162301]
[1772652042806,15.30930172,93.319,93.241,15.17879383]
[1772652043706,15.30930172,93.311,93.24,8.28162301]
[1772652044001,15.30930172,93.311,93.219,15.17879383]
[1772652044002,15.30930172,93.311,93.22,8.28162301]
[1772652044704,15.30930172,93.311,93.24,8.28162301]
[1772652045500,9.643,93.297,93.24,8.28162301]
[1772652046409,24.95130172,93.307,93.24,8.28162301]
[1772652046606,15.30930172,93.307,93.24,8.28162301]
[1772652046802,15.30930172,93.302,93.221,15.17879383]
[1772652047708,15.30930172,93.302,93.24,8.28162301]
[1772652048209,15.30930172,93.302,93.24,23.46041684]
[1772652048700,15.30930172,93.302,93.262,9.646]
[1772652048900,17.21446274,93.387,93.267,16.89208539]
[1772652049100,17.21446274,93.387,93.33,8.28162301]
[1772652049301,17.21446274,93.387,93.25,16.89208539]
[1772652049608,17.21446274,93.387,93.332,9.639]
[1772652050302,9.632,93.398,93.332,9.639]
[1772652050709,17.21446274,93.41,93.35,8.28162301]
[1772652051113,26.84546274,93.408,93.345,9.638]
[1772652051410,17.21446274,93.408,93.331,16.89208539]
[1772652051610,17.21446274,93.408,93.35,8.28162301]
[1772652052108,17.21446274,93.408,93.331,16.89208539]
[1772652052307,17.21446274,93.408,93.31,8.28162301]
[1772652052511,17.21446274,93.385,93.3,8.28162301]
[1772652052705,17.21446274,93.385,93.299,16.89208539]
[1772652053104,17.21446274,93.366,93.299,26.53408539]
[1772652053310,17.21446274,93.366,93.272,16.89208539]
[1772652053703,17.21446274,93.366,93.214,169.44]
[1772652053704,17.21446274,93.324,93.25,25.1737084]
[1772652053909,17.21446274,93.324,93.25,16.89208539]
[1772652054111,17.21446274,93.324,93.23,8.28162301]
[1772652054313,17.21446274,93.324,93.23,25.1737084]
[1772652054507,17.21446274,93.32,93.24,25.16032248]
[1772652054907,17.21446274,93.366,93.278,16.89208539]
[1772652055104,17.21446274,93.449,93.31,8.26823709]
[1772652055308,17.21446274,93.409,93.331,16.89208539]
[1772652056110,17.21446274,93.409,93.31,8.26823709]
[1772652056315,17.21446274,93.389,93.303,16.89208539]
[1772652057115,17.21446274,93.389,93.323,9.64]
[1772652057614,16.74988176,93.389,93.323,9.64]
[1772652058013,26.38288176,93.389,93.323,9.64]
[1772652058312,26.38288176,93.389,93.303,16.89208539]
[1772652058313,16.74988176,93.389,93.303,16.89208539]
[1772652059415,9.633,93.388,93.321,9.64]
[1772652059613,17.21446274,93.387,93.321,9.64]
[1772652059809,17.21446274,93.387,93.303,16.89208539]
[1772652060616,17.21446274,93.405,93.338,9.638]
[1772652061012,17.21446274,93.405,93.324,16.89208539]
[1772652061207,17.21446274,93.405,93.29,19.87466655]
[1772652061418,17.21446274,93.405,93.264,9.50213511]
[1772652061419,17.21446274,93.384,93.302,16.89208539]
[1772652061814,17.21446274,93.37,93.306,9.642]
[1772652062015,17.21446274,93.37,93.261,16.89208539]
[1772652062415,17.21446274,93.362,93.261,16.89208539]
[1772652063511,19.87466655,93.39,93.291,9.643]
[1772652063512,17.21446274,93.36,93.291,9.643]
[1772652063920,17.21446274,93.36,93.261,16.89208539]
[1772652064419,17.21446274,93.339,93.261,16.89208539]
[1772652064815,17.21446274,93.334,93.267,9.646]
[1772652065919,17.21446274,93.334,93.277,9.645]
[1772652066711,9.639,93.333,93.266,9.646]
[1772652067117,17.21446274,93.332,93.231,16.89208539]
[1772652067317,26.85446274,93.32,93.25,9.648]
[1772652067724,17.21446274,93.319,93.231,16.89208539]
[1772652067922,17.21446274,93.308,93.239,9.649]
[1772652068218,17.21446274,93.308,93.209,16.89208539]
[1772652068417,17.21446274,93.289,93.187,16.89208539]
[1772652068725,149.951,93.331,93.187,16.89208539]
[1772652068726,17.21446274,93.269,93.187,16.89208539]
[1772652069424,17.21446274,93.269,93.206,9.652]
[1772652069620,17.21446274,93.269,93.187,16.89208539]
[1772652069822,17.21446274,93.265,93.194,9.653]
[1772652070524,17.21446274,93.265,93.161,16.89208539]
[1772652070926,17.21446274,93.238,93.161,16.89208539]
[1772652071122,17.21446274,93.238,93.121,16.89208539]
[1772652071521,17.21446274,93.21,93.121,16.89208539]
[1772652072229,17.21446274,93.208,93.121,16.89208539]
[1772652073331,9.652,93.207,93.134,9.66]
[1772652073529,17.21446274,93.208,93.121,16.89208539]
[1772652073927,17.21446274,93.172,93.07,16.89208539]
[1772652074320,17.21446274,93.169,93.07,16.89208539]
[1772652074529,17.21446274,93.148,93.075,9.666]
[1772652074821,17.21446274,93.148,93.07,16.89208539]
[1772652075026,9.66,93.13,93.053,16.89208539]
[1772652075230,17.21446274,93.129,93.021,16.89208539]
[1772652075628,17.21446274,93.129,93.063,9.667]
[1772652076123,17.21446274,93.129,93.005,150.476]
[1772652076124,17.21446274,93.127,93.025,16.89208539]
[1772652076524,17.21446274,93.127,93.041,16.89208539]
[1772652076727,17.21446274,93.127,93.062,9.667]
[1772652076922,17.21446274,93.127,93.018,16.89208539]
[1772652076923,8.30454258,93.12,93.018,16.89208539]
[1772652077123,17.21446274,93.119,93.067,0.06802933]
[1772652077728,17.21446274,93.119,93.055,9.668]
[1772652078625,17.21446274,93.119,93.007,150.472]
[1772652078626,19.30998691,93.141,93.061,18.44828249]
[1772652079132,19.30998691,93.141,93.075,9.666]
[1772652079333,19.30998691,93.141,93.061,18.44828249]
[1772652080132,19.30998691,93.141,93.075,9.666]
[1772652080438,19.30998691,93.141,93.061,18.44828249]
[1772652081435,19.30998691,93.141,93.092,0.06779056]
[1772652082037,19.30998691,93.165,93.092,18.51607305]
[1772652082433,19.30998691,93.165,93.092,0.06779056]
[1772652082634,19.30998691,93.164,93.081,18.44828249]
[1772652083134,19.30998691,93.164,93.104,9.663]
[1772652083335,19.30998691,93.186,93.105,18.44828249]
[1772652084040,19.30998691,93.186,93.12,8.30454258]
[1772652084236,19.30998691,93.186,93.125,9.661]
[1772652084830,19.30998691,93.186,93.135,9.659]
[1772652085840,19.30998691,93.186,93.124,9.661]
[1772652087043,19.30998691,93.186,93.105,18.44828249]
[1772652087044,19.30998691,93.186,93.111,9.662]
[1772652087642,19.953178,93.169,93.098,9.663]
[1772652088142,19.953178,93.167,93.098,9.663]
[1772652088544,19.953178,93.167,93.087,9.664]
[1772652088743,19.953178,93.149,93.062,19.57985168]
[1772652088943,19.953178,93.149,93.04,27.88439426]
[1772652089242,19.953178,93.129,93.04,27.88439426]
[1772652089647,19.953178,93.126,93.04,19.57985168]
[1772652091244,19.953178,93.113,93.02,8.30454258]
[1772652091449,19.953178,93.109,93.018,19.57985168]
[1772652091838,19.953178,93.101,93.018,19.57985168]
[1772652092449,19.953178,93.101,93.031,9.67]
[1772652092650,19.953178,93.101,93.021,19.57985168]
[1772652093153,19.953178,93.099,93.04,9.669]
[1772652093450,19.953178,93.099,92.979,19.352]
[1772652093451,8.30454258,93.09,93.001,19.57985168]
[1772652093746,19.953178,93.089,93.001,19.57985168]
[1772652094048,19.953178,93.088,93.019,9.672]
[1772652094246,19.953178,93.088,93.001,19.57985168]
[1772652094647,29.618178,93.086,93.001,19.57985168]
[1772652094949,19.953178,93.085,93.001,19.57985168]
[1772652095343,19.953178,93.085,93.019,9.671]
[1772652096246,19.953178,93.085,93.001,19.57985168]
[1772652096247,19.953178,93.085,93.028,9.671]
[1772652096647,19.953178,93.085,93.0,8.30454258]
[1772652096853,19.953178,93.072,92.996,19.57985168]
[1772652097254,19.953178,93.069,93.0,9.673]
[1772652097748,19.953178,93.069,93.025,0.06802782]
[1772652098150,19.953178,93.099,93.025,0.06802782]
[1772652098654,19.953178,93.099,93.0,8.30454258]
[1772652098849,19.953178,93.099,92.996,19.57985168]
[1772652099354,19.953178,93.084,93.017,9.672]
[1772652100752,9.666,93.071,93.007,9.673]
[1772652100946,19.953178,93.07,93.007,9.673]
[1772652101956,19.953178,93.07,92.996,19.57985168]
[1772652102455,19.953178,93.07,92.975,19.57985168]
[1772652102652,19.953178,93.059,92.975,19.57985168]
[1772652103352,9.668,93.058,93.005,9.673]
[1772652103752,9.668,93.058,93.008,0.06859597]
[1772652104054,19.953178,93.077,93.008,0.06859597]
[1772652104650,19.953178,93.077,92.994,19.57985168]
[1772652105354,9.666,93.072,93.017,9.672]
[1772652105754,19.953178,93.077,92.994,19.57985168]
[1772652105953,19.953178,93.077,93.018,9.672]
[1772652106148,19.953178,93.077,93.011,19.57985168]
[1772652106758,19.953178,93.077,92.991,19.57985168]
[1772652107948,9.666,93.076,93.02,9.671]
[1772652108152,19.953178,93.077,92.991,19.57985168]
[1772652109049,19.28607778,93.076,93.024,9.671]
[1772652109252,19.28607778,93.076,92.991,19.57985168]
[1772652109959,8.30454258,93.07,92.956,20.22626814]
[1772652110150,19.28607778,93.046,92.956,20.22626814]
[1772652110754,19.28607778,93.046,92.977,9.676]
[1772652110953,19.28607778,93.029,92.956,20.22626814]
[1772652111459,19.28607778,93.027,92.94,264.67837422]
[1772652111659,19.28607778,93.027,92.941,20.22626814]
[1772652112056,19.28607778,93.025,92.941,20.22626814]
[1772652112558,19.28607778,93.025,92.952,9.679]
[1772652112858,19.28607778,93.025,92.941,20.22626814]
[1772652114057,150.371,93.071,92.94,264.67837422]
[1772652114058,19.28607778,93.009,92.94,264.67837422]
[1772652114453,19.28607778,92.991,92.928,9.681]
[1772652114655,19.28607778,92.959,92.876,20.22626814]
[1772652115261,19.28607778,92.959,92.908,0.06860286]
[1772652115463,19.28607778,92.941,92.876,20.22626814]
[1772652116057,19.28607778,92.938,92.851,20.22626814]
[1772652116573,9.682,92.916,92.851,20.22626814]
[1772652117170,9.682,92.916,92.852,9.689]
[1772652117464,19.28607778,92.918,92.852,9.689]
[1772652117866,19.28607778,92.918,92.852,29.91526814]
[1772652118363,9.682,92.921,92.852,20.22626814]
[1772652118667,19.28607778,92.92,92.831,20.22626814]
[1772652119366,9.682,92.916,92.84,9.69]
[1772652119665,9.682,92.916,92.841,20.22626814]
[1772652119861,19.28607778,92.978,92.88,8.34133418]
[1772652120368,19.28607778,92.959,92.88,8.34133418]
[1772652120568,19.28607778,92.948,92.851,20.22626814]
[1772652120960,19.28607778,92.948,92.87,8.34133418]
[1772652121163,19.28607778,92.944,92.851,20.22626814]
[1772652121359,19.28607778,92.939,92.851,20.22626814]
[1772652121765,9.682,92.915,92.851,20.22626814]
[1772652121963,19.28607778,92.914,92.851,20.22626814]
[1772652122169,9.684,92.901,92.833,9.691]
[1772652122365,28.97007778,92.901,92.833,9.691]
[1772652122665,19.28607778,92.901,92.833,9.691]
[1772652123263,8.34133418,92.92,92.829,20.22626814]
[1772652123468,19.28607778,92.92,92.841,20.22626814]
[1772652123766,19.28607778,92.944,92.862,20.22626814]
[1772652124970,19.28607778,92.944,92.877,9.686]
[1772652125572,9.678,92.953,92.886,29.91126814]
[1772652125769,19.28607778,92.965,92.887,20.22626814]
[1772652126070,19.28607778,92.989,92.901,20.22626814]
[1772652126773,19.28607778,92.989,92.936,0.0685072]
[1772652126973,19.28607778,93.01,92.94,8.34133418]
[1772652127179,9.675,92.987,92.936,0.0685072]
[1772652127370,9.675,92.987,92.915,20.22626814]
[1772652127566,19.28607778,93.009,92.921,20.22626814]
[1772652127968,9.673,93.008,92.921,20.22626814]
[1772652128269,19.28607778,93.009,92.94,8.34133418]
[1772652128578,19.28607778,93.019,92.948,9.679]
[1772652129272,9.672,93.013,92.957,9.678]
[1772652129472,19.28607778,93.019,92.958,20.22626814]
[1772652129675,19.28607778,93.049,92.958,20.22626814]
[1772652130474,19.28607778,93.049,92.962,9.677]
[1772652130475,9.671,93.023,92.962,9.677]
[1772652131173,19.28607778,93.029,92.983,0.06833723]
[1772652131772,9.671,93.026,92.983,0.06833723]
[1772652131979,19.28607778,93.029,92.937,20.22626814]
[1772652132176,9.673,93.006,92.937,20.22626814]
[1772652132374,19.28607778,93.005,92.937,20.22626814]
[1772652133477,19.28607778,93.005,92.937,29.90626814]
[1772652133478,9.674,92.997,92.937,29.90626814]
[1772652133877,9.674,92.997,92.89,8.34133418]
[1772652133878,19.28607778,92.996,92.916,20.22626814]
[1772652134782,19.28607778,92.996,92.916,29.90826814]
[1772652135074,8.34133418,92.99,92.916,9.682]
[1772652135478,19.28607778,92.974,92.907,20.22626814]
[1772652135974,9.676,92.973,92.909,9.683]
[1772652136171,19.28607778,92.949,92.851,20.22626814]
[1772652136774,9.682,92.915,92.851,20.22626814]
[1772652136978,19.28607778,92.928,92.851,20.22626814]
[1772652137577,9.682,92.916,92.851,20.22626814]
[1772652138278,19.28607778,92.927,92.851,20.22626814]
[1772652138875,19.28607778,92.927,92.852,19.41019302]
[1772652139576,8.34133418,92.96,92.86,8.34133418]
[1772652139577,21.37946107,92.948,92.86,8.34133418]
[1772652139781,21.37946107,92.948,92.861,19.41019302]
[1772652139980,21.37946107,92.939,92.861,19.41019302]
[1772652140184,9.682,92.921,92.861,19.41019302]
[1772652140580,21.37946107,92.939,92.861,19.41019302]
[1772652140888,21.37946107,92.952,92.883,9.686]
[1772652141380,21.37946107,92.952,92.871,9.687]
[1772652141584,21.37946107,92.952,92.88,8.34133418]
[1772652142384,21.37946107,92.952,92.89,29.09519302]
[1772652142585,21.37946107,92.989,92.9,27.7515272]
[1772652142785,21.37946107,92.989,92.901,19.41019302]
[1772652143883,9.676,92.973,92.914,9.682]
[1772652144779,9.68,92.939,92.879,19.41019302]
[1772652144976,19.346,93.008,92.879,19.41019302]
[1772652144977,21.37946107,92.959,92.879,19.41019302]
[1772652145477,21.37946107,92.959,92.899,9.684]
[1772652145884,21.37946107,92.981,92.901,20.25052292]
[1772652146988,9.678,92.961,92.902,9.684]
[1772652147384,21.37946107,92.981,92.901,20.25052292]
[1772652148488,9.676,92.978,92.921,9.682]
[1772652149190,31.12618397,92.978,92.911,9.683]
[1772652149390,9.676,92.974,92.911,9.683]
[1772652150090,9.677,92.965,92.901,29.93452292]
[1772652150286,21.45018397,93.031,92.911,20.25052292]
[1772652150487,21.45018397,93.009,92.911,20.25052292]
[1772652150685,9.677,92.968,92.911,20.25052292]
[1772652151689,9.678,92.96,92.911,20.25052292]
[1772652151891,21.45018397,92.96,92.893,9.685]
[1772652152097,21.45018397,92.96,92.893,20.25052292]
[1772652152392,9.678,92.959,92.893,20.25052292]
[1772652153083,29.79151815,92.93,92.846,20.25052292]
[1772652153289,21.45018397,92.929,92.846,20.25052292]
[1772652153700,21.45018397,92.929,92.851,20.25052292]
[1772652154489,21.45018397,92.929,92.861,9.688]
[1772652154894,21.45018397,92.929,92.851,20.25052292]
[1772652155086,21.45018397,92.95,92.877,29.93652292]
[1772652155397,21.45018397,92.95,92.877,20.25052292]
[1772652156084,21.45018397,92.95,92.861,20.25052292]
[1772652156595,21.45018397,92.938,92.861,20.25052292]
[1772652158291,9.68,92.935,92.881,9.686]
[1772652159394,9.68,92.935,92.861,20.25052292]
[1772652159395,9.68,92.935,92.872,9.687]
[1772652159690,9.679,92.944,92.891,9.685]
[1772652159891,21.45018397,92.958,92.872,20.25052292]
[1772652160497,9.681,92.927,92.872,20.25052292]
[1772652160890,21.45018397,92.958,92.872,20.25052292]
[1772652161395,9.679,92.947,92.897,9.684]
[1772652161594,21.45018397,92.958,92.897,9.684]
[1772652162195,9.678,92.956,92.906,9.683]
[1772652162392,9.678,92.956,92.89,20.25052292]
[1772652162596,21.45018397,92.982,92.901,20.25052292]
[1772652162797,9.676,92.977,92.901,20.25052292]
[1772652163096,21.45018397,92.982,92.901,20.25052292]
[1772652163502,9.679,92.951,92.903,9.684]
[1772652163701,9.679,92.951,92.901,20.25052292]
[1772652164099,9.678,92.96,92.902,9.684]
[1772652164697,21.45018397,92.959,92.922,0.06785262]
[1772652164899,21.45018397,92.959,92.881,20.25052292]
[1772652165296,9.679,92.948,92.891,20.25052292]
[1772652165500,21.45018397,92.959,92.891,20.25052292]
[1772652166397,21.45018397,92.959,92.897,20.25052292]
[1772652167308,21.45018397,92.997,92.911,20.25052292]
[1772652167502,21.45018397,92.997,92.921,20.25052292]
[1772652168307,21.45018397,92.997,92.938,20.25052292]
[1772652168807,20.90221836,93.029,92.938,20.25052292]
[1772652169007,9.674,92.999,92.946,9.679]
[1772652170908,9.674,92.999,92.938,20.25052292]
[1772652171108,20.90221836,93.01,92.938,20.25052292]
[1772652171109,9.673,93.009,92.938,20.25052292]
[1772652171704,9.672,93.018,92.959,31.06100844]
[1772652171905,20.90221836,93.03,92.96,21.38300844]
[1772652172909,20.90221836,93.03,92.94,21.38300844]
[1772652173110,20.90221836,93.012,92.94,21.38300844]
[1772652174004,0.06790612,92.985,92.94,21.38300844]
[1772652174502,20.97012448,92.985,92.916,21.38300844]
[1772652174706,20.90221836,92.979,92.898,21.38300844]
[1772652175811,0.06789665,92.948,92.898,21.38300844]
[1772652176808,9.679,92.944,92.898,21.38300844]
[1772652177409,0.06789665,92.948,92.898,31.06700844]
[1772652178012,0.06789665,92.948,92.91,31.06600844]
[1772652178710,9.677,92.971,92.92,9.682]
[1772652180414,9.677,92.971,92.912,9.683]
[1772652180614,9.677,92.971,92.91,21.38300844]
[1772652180814,20.90221836,92.976,92.91,21.38300844]
[1772652181406,20.90221836,92.976,92.87,19.40112124]
[1772652181407,20.90221836,92.958,92.885,9.70049842]
[1772652181605,20.90221836,92.958,92.884,21.38300844]
[1772652182012,9.68,92.941,92.884,21.38300844]
[1772652182214,20.90221836,92.958,92.884,21.38300844]
[1772652182415,20.90221836,92.958,92.852,19.40112124]
[1772652182416,20.90221836,92.949,92.868,9.70049842]
[1772652182614,20.90221836,92.949,92.867,21.38300844]
[1772652182815,20.90221836,92.949,92.877,21.38300844]
[1772652183207,9.68,92.942,92.888,9.685]
[1772652183818,20.90221836,92.949,92.877,21.38300844]
[1772652184013,9.678,92.954,92.885,9.70049842]
[1772652184315,9.678,92.954,92.887,21.38300844]
[1772652184515,9.678,92.954,92.888,21.38300844]
[1772652184716,20.90221836,92.969,92.911,21.38300844]
[1772652185115,8.33024405,92.99,92.911,21.38300844]
[1772652185407,20.90221836,92.989,92.911,21.38300844]
[1772652187917,20.90221836,92.969,92.894,9.70049842]
[1772652188117,20.90221836,92.969,92.891,21.38300844]
[1772652188321,9.679,92.951,92.91,9.683]
[1772652188516,9.679,92.951,92.892,21.38300844]
[1772652188716,9.982501,93.018,92.87,8.33024405]
[1772652188717,20.90221836,92.989,92.898,21.38300844]
[1772652189316,20.90221836,92.989,92.898,9.70049842]
[1772652189624,20.90221836,92.989,92.904,21.38300844]
[1772652190914,20.90221836,92.989,92.907,21.38300844]
[1772652191523,9.677,92.971,92.923,9.682]
[1772652191726,20.90221836,92.989,92.907,21.38300844]
[1772652192119,20.90221836,92.989,92.922,9.682]
[1772652192319,0.06787179,92.956,92.922,9.682]
[1772652193325,20.97009015,92.956,92.904,0.00049842]
[1772652193624,20.97009015,92.956,92.856,25.86816165]
[1772652193625,20.90221836,92.949,92.871,21.38300844]
[1772652194016,9.68,92.941,92.886,21.38300844]
[1772652194523,9.68,92.941,92.895,9.684]
[1772652195927,0.06814051,92.927,92.895,9.684]
[1772652196816,0.06814051,92.927,92.887,9.685]
[1772652197024,0.06814051,92.927,92.886,21.38300844]
[1772652197524,9.679,92.951,92.901,9.684]
[1772652197729,29.23246241,92.97,92.901,21.38300844]
[1772652198019,9.679,92.951,92.901,31.06700844]
[1772652200120,20.90221836,92.97,92.901,21.38300844]
[1772652200327,20.23151893,92.989,92.901,21.38300844]
[1772652200914,20.23151893,92.967,92.896,12.93399789]
[1772652201124,20.23151893,92.967,92.88,21.84136796]
[1772652201326,20.23151893,92.967,92.881,21.84136796]
[1772652201927,20.23151893,92.967,92.888,21.84136796]
[1772652202130,20.23151893,92.967,92.87,21.84136796]
[1772652202922,9.68,92.934,92.875,21.84136796]
[1772652203122,9.68,92.934,92.78,46.27616854]
[1772652203124,20.23151893,92.919,92.847,21.84136796]
[1772652203522,20.23151893,92.919,92.784,25.86816165]
[1772652203523,20.23151893,92.899,92.8,19.40112124]
[1772652203725,8.33024405,92.96,92.747,428.21116047]
[1772652203726,20.23151893,92.869,92.792,21.84136796]
[1772652203921,9.687,92.867,92.792,21.84136796]
[1772652204127,29.91851893,92.867,92.792,21.84136796]
[1772652204323,20.23151893,92.867,92.792,21.84136796]
[1772652204524,9.689,92.854,92.792,21.84136796]
[1772652204728,20.23151893,92.867,92.8,8.33024405]
[1772652204919,20.23151893,92.867,92.801,21.84136796]
[1772652205123,9.688,92.866,92.801,21.84136796]
[1772652205525,20.23151893,92.863,92.78,21.84136796]
[1772652206124,21.93579261,92.859,92.78,21.84136796]
[1772652206525,9.69,92.838,92.78,21.84136796]
[1772652206725,21.93579261,92.859,92.78,21.84136796]
[1772652207029,9.689,92.851,92.78,21.84136796]
[1772652207227,9.689,92.851,92.728,19.53510333]
[1772652207228,21.93579261,92.809,92.748,22.11438554]
[1772652207429,21.93579261,92.809,92.742,0.00029258]
[1772652207824,21.93579261,92.788,92.742,0.00029258]
[1772652208225,21.93579261,92.781,92.742,0.00029258]
[1772652208931,21.93579261,92.819,92.742,0.00029258]
[1772652209623,150.808,92.801,92.742,0.00029258]
[1772652209828,8.33024405,92.82,92.582,151.162]
[1772652209829,21.93579261,92.743,92.641,22.11438554]
[1772652210026,8.33024405,92.73,92.641,22.11438554]
[1772652210427,9.702,92.726,92.641,22.11438554]
[1772652210828,9.702,92.726,92.651,22.11438554]
[1772652211024,21.93579261,92.743,92.651,22.11438554]
[1772652211025,9.701,92.742,92.651,22.11438554]
[1772652211228,21.93579261,92.743,92.651,22.11438554]
[1772652211430,21.93579261,92.739,92.651,22.11438554]
[1772652211630,21.93579261,92.719,92.63,8.33024405]
[1772652211830,21.93579261,92.713,92.631,22.11438554]
[1772652212225,21.93579261,92.755,92.671,22.11438554]
[1772652212528,21.93579261,92.747,92.671,22.11438554]
[1772652212829,21.93579261,92.747,92.674,22.11438554]
[1772652214329,9.699,92.761,92.68,9.707]
[1772652214534,21.93579261,92.768,92.681,22.11438554]
[1772652215431,21.93579261,92.764,92.684,22.11438554]
[1772652216129,31.63479261,92.759,92.684,22.11438554]
[1772652216428,21.93579261,92.758,92.684,22.11438554]
[1772652217432,21.93579261,92.739,92.661,22.11438554]
[1772652218633,21.93579261,92.737,92.661,22.11438554]
[1772652218829,21.93579261,92.724,92.555,22.11438554]
[1772652219032,21.93579261,92.689,92.591,22.11438554]
[1772652219239,21.93579261,92.665,92.58,8.33024405]
[1772652219438,21.93579261,92.665,92.581,22.11438554]
[1772652219637,159.22124405,92.75,92.601,22.11438554]
[1772652219638,21.93579261,92.709,92.601,22.11438554]
[1772652220334,21.93579261,92.759,92.621,22.11438554]
[1772652220633,21.93579261,92.739,92.641,22.11438554]
[1772652220934,21.93579261,92.722,92.641,22.11438554]
[1772652221534,21.93579261,92.722,92.646,22.11438554]
[1772652222636,31.63879261,92.722,92.646,22.11438554]
[1772652222938,21.93579261,92.721,92.646,22.11438554]
[1772652223335,9.706,92.692,92.624,22.11438554]
[1772652223636,21.93579261,92.722,92.641,22.11438554]
[1772652223836,8.33024405,92.74,92.641,22.11438554]
[1772652224038,21.93579261,92.739,92.641,22.11438554]
[1772652224635,21.93579261,92.739,92.645,22.11438554]
[1772652225243,9.704,92.708,92.645,22.11438554]
[1772652228542,9.705,92.698,92.645,22.11438554]
[1772652229742,21.56481293,92.739,92.645,22.11438554]
[1772652230747,9.704,92.712,92.647,20.9406877]
[1772652231247,9.704,92.712,92.649,20.9406877]
[1772652232449,9.704,92.712,92.64,8.33024405]
[1772652232450,9.702,92.726,92.653,20.9406877]
[1772652232637,9.702,92.726,92.61,8.33024405]
[1772652232638,9.702,92.726,92.661,20.9406877]
[1772652233536,21.56481293,92.759,92.671,20.9406877]
[1772652233841,21.56481293,92.759,92.681,9.707]
[1772652234246,9.701,92.739,92.672,20.9406877]
[1772652234644,21.56481293,92.759,92.672,20.9406877]
[1772652234847,9.7,92.743,92.672,20.9406877]
[1772652235350,21.56481293,92.759,92.674,20.9406877]
[1772652235551,21.56481293,92.781,92.691,20.9406877]
[1772652235752,21.56481293,92.781,92.707,20.9406877]
[1772652236047,21.56481293,92.76,92.69,20.9406877]
[1772652236241,21.56481293,92.76,92.694,9.705]
[1772652236440,21.56481293,92.76,92.694,20.9406877]
[1772652236641,21.56481293,92.758,92.694,20.9406877]
[1772652237947,8.33024405,92.77,92.704,9.704]
[1772652238155,9.697,92.775,92.694,20.9406877]
[1772652238354,21.56481293,92.779,92.694,20.9406877]
[1772652238953,9.698,92.766,92.703,20.9406877]
[1772652239747,9.697,92.778,92.707,20.9406877]
[1772652239950,21.56481293,92.779,92.707,20.9406877]
[1772652240151,21.56481293,92.799,92.729,20.9406877]
[1772652240959,21.56481293,92.818,92.741,20.9406877]
[1772652241458,9.694,92.808,92.742,9.7]
[1772652241762,21.56481293,92.838,92.741,20.9406877]
[1772652242058,21.56481293,92.838,92.761,20.9406877]
[1772652242253,21.56481293,92.861,92.78,7.16716377]
[1772652242451,21.56481293,92.861,92.781,20.9406877]
[1772652242653,21.56481293,92.845,92.761,20.9406877]
[1772652243560,21.56481293,92.845,92.78,9.696]
[1772652243955,21.56481293,92.845,92.761,20.9406877]
[1772652244159,21.56481293,92.866,92.785,20.9406877]
[1772652244657,21.56481293,92.859,92.785,20.9406877]
[1772652245057,21.56481293,92.859,92.805,9.694]
[1772652245257,21.56481293,92.879,92.806,20.9406877]
[1772652245765,21.56481293,92.899,92.823,20.9406877]
[1772652246065,21.56481293,92.899,92.824,20.9406877]
[1772652246661,21.56481293,92.898,92.824,20.9406877]
[1772652247265,9.684,92.895,92.826,9.692]
[1772652247756,21.56481293,92.919,92.85,28.10785147]
[1772652248058,21.56481293,92.919,92.85,20.9406877]
[1772652248263,31.24681293,92.918,92.831,20.9406877]
[1772652248463,21.56481293,92.917,92.831,20.9406877]
[1772652248861,9.684,92.903,92.835,9.691]
[1772652249061,7.16716377,92.93,92.835,9.691]
[1772652249062,21.56481293,92.902,92.835,9.691]
[1772652249258,21.56481293,92.902,92.835,30.6316877]
[1772652249462,21.56481293,92.902,92.836,20.9406877]
[1772652249661,21.56481293,92.902,92.844,9.69]
[1772652250062,21.56481293,92.902,92.859,0.06794897]
[1772652251361,21.56481293,92.925,92.86,20.9406877]
[1772652251764,21.56481293,92.925,92.859,0.06794897]
[1772652252070,21.56481293,92.925,92.842,20.9406877]
[1772652252268,9.685,92.893,92.842,20.9406877]
[1772652253168,9.685,92.893,92.826,9.692]
[1772652253667,9.685,92.889,92.858,0.00017795]
[1772652254164,21.56481293,92.892,92.835,9.691]
[1772652254971,21.56481293,92.92,92.847,20.9406877]
[1772652255360,21.56481293,92.909,92.826,20.9406877]